bitfinex/quotes_BTCUSD_20241223
["timestamp","ask_amount","ask_price","bid_price","bid_amount"]
[1734977514370,0.00133504,93634.0,93623.0,0.236622]
[1734977515864,0.213599,93633.0,93623.0,0.236622]
[1734977517135,0.213599,93633.0,93623.0,0.241622]
[1734977517693,0.213599,93633.0,93623.0,0.240622]
[1734977517868,0.213599,93633.0,93623.0,0.241622]
[1734977518104,0.213618,93625.0,93623.0,0.001]
[1734977518309,0.213643,93614.0,93613.0,0.246671]
[1734977519290,0.18378632,93624.0,93601.0,0.09573736]
[1734977519491,0.213661,93607.0,93601.0,0.09573736]
[1734977519924,0.213668,93603.0,93601.0,0.09573736]
[1734977520097,0.10398632,93622.0,93596.0,8.569e-05]
[1734977520268,0.213672,93602.0,93596.0,8.569e-05]
[1734977520491,0.213661,93606.0,93596.0,8.569e-05]
[1734977520813,0.213658,93608.0,93596.0,8.569e-05]
[1734977521010,0.00133543,93607.0,93601.0,0.001]
[1734977521215,0.00133543,93607.0,93601.0,0.004]
[1734977521415,0.00133543,93607.0,93601.0,0.001]
[1734977521579,0.213661,93606.0,93596.0,0.00208569]
[1734977521793,0.213679,93598.0,93596.0,0.00308569]
[1734977522018,0.00133559,93597.0,93596.0,0.00308569]
[1734977522421,0.10398632,93597.0,93596.0,0.00308569]
[1734977522677,0.25532212,93597.0,93596.0,0.00308569]
[1734977522878,0.25398632,93597.0,93596.0,0.00308569]
[1734977523385,0.25398632,93597.0,93596.0,0.00208569]
[1734977523588,0.25398632,93597.0,93596.0,8.569e-05]
[1734977523833,0.25398632,93597.0,93596.0,0.00208569]
[1734977524475,0.25498632,93597.0,93596.0,0.00208569]
[1734977524685,0.151,93597.0,93596.0,0.00208569]
[1734977524888,0.00233569,93597.0,93596.0,0.00208569]
[1734977525301,0.00133569,93597.0,93596.0,0.00208569]
[1734977525964,0.213665,93605.0,93596.0,0.00208569]
[1734977526173,0.0812,93620.0,93597.0,0.023]
[1734977526382,0.0009849,93621.0,93597.0,0.023]
[1734977526383,0.213644,93614.0,93597.0,0.236681]
[1734977526593,0.0009849,93621.0,93597.0,0.236681]
[1734977526594,0.0009849,93621.0,93607.0,0.023]
[1734977526821,0.2146119,93621.0,93608.0,0.213656]
[1734977527038,0.213607,93630.0,93615.0,0.21364]
[1734977527222,0.214587,93630.0,93616.0,0.023]
[1734977527652,0.00098,93630.0,93617.0,0.213636]
[1734977527853,0.00098,93630.0,93624.0,0.023]
[1734977528069,0.00098,93630.0,93627.0,0.213613]
[1734977528274,0.00133493,93642.0,93630.0,0.023]
[1734977528686,0.213587,93639.0,93630.0,0.023]
[1734977529092,0.213577,93643.0,93630.0,0.023]
[1734977529340,0.00133493,93642.0,93630.0,0.023]
[1734977529532,0.00033037,93633.0,93629.0,0.023]
[1734977529741,0.00033037,93633.0,93630.0,0.213606]
[1734977529945,0.00033037,93633.0,93631.0,0.023]
[1734977530152,0.00033037,93633.0,93632.0,0.5880591]
[1734977530317,0.00033037,93633.0,93632.0,0.66705932]
[1734977531140,0.00033037,93633.0,93632.0,0.71645932]
[1734977531333,0.00033037,93633.0,93632.0,0.72545932]
[1734977531541,0.213553,93654.0,93641.0,0.21358]
[1734977531739,0.0005322,93655.0,93642.0,0.14834432]
[1734977531940,0.0005322,93655.0,93652.0,0.213556]
[1734977532141,0.0007032,93655.0,93653.0,0.023]
[1734977532345,0.2142532,93655.0,93644.0,0.023]
[1734977532500,0.213569,93647.0,93643.0,0.246671]
[1734977532719,0.213572,93645.0,93643.0,0.246671]
[1734977532927,0.213552,93654.0,93643.0,0.246671]
[1734977533220,0.0009857,93662.0,93644.0,0.10478597]
[1734977533436,0.00232035,93662.0,93645.0,0.2487177]
[1734977533999,0.0009857,93662.0,93647.0,0.023]
[1734977534203,0.0009857,93662.0,93649.0,0.213561]
[1734977534402,0.213526,93666.0,93650.0,0.023]
[1734977534617,0.213526,93666.0,93652.0,0.023]
[1734977535018,0.213526,93666.0,93650.0,0.023]
[1734977535189,0.213535,93662.0,93650.0,0.236559]
[1734977535888,0.213526,93666.0,93650.0,0.236559]
[1734977536300,0.213526,93666.0,93650.0,0.239559]
[1734977536541,0.213536,93661.0,93650.0,0.239559]
[1734977536718,0.213526,93666.0,93650.0,0.026]
[1734977536923,0.213541,93659.0,93652.0,0.007]
[1734977537117,0.0013347,93658.0,93650.0,0.026]
[1734977537533,0.213554,93653.0,93650.0,0.01]
[1734977537756,0.213558,93651.0,93650.0,0.007]
[1734977537913,0.213554,93653.0,93650.0,0.007]
[1734977538672,0.213554,93653.0,93652.0,0.004]
[1734977539106,0.213554,93653.0,93652.0,0.005]
[1734977539522,0.213554,93653.0,93652.0,0.004]
[1734977539931,0.213554,93653.0,93652.0,0.005]
[1734977540287,0.213554,93653.0,93638.0,0.213587]
[1734977540508,0.213554,93653.0,93650.0,0.002]
[1734977540710,0.213554,93653.0,93652.0,0.001]
[1734977541191,0.213554,93653.0,93652.0,0.003]
[1734977542050,0.213554,93653.0,93652.0,0.002]
[1734977542225,0.213554,93653.0,93638.0,0.2857024]
[1734977542226,0.213536,93661.0,93638.0,0.001]
[1734977542428,0.213579,93642.0,93638.0,0.001]
[1734977542911,0.213583,93640.0,93633.0,0.246671]
[1734977543333,0.213554,93654.0,93635.0,0.213595]
[1734977543541,0.213554,93654.0,93630.0,0.213605]
[1734977543542,0.00133478,93653.0,93646.0,0.213569]
[1734977543748,0.0009841,93657.0,93646.0,0.213569]
[1734977543925,0.1,93687.0,93646.0,0.213569]
[1734977543926,0.213532,93663.0,93646.0,0.427138]
[1734977544120,0.21354,93659.0,93651.0,0.023]
[1734977544781,0.213527,93665.0,93651.0,0.023]
[1734977544988,0.0011697,93672.0,93653.0,0.023]
[1734977545188,0.0011697,93672.0,93654.0,0.12698632]
[1734977545575,0.00250419,93672.0,93654.0,0.12698632]
[1734977546005,0.00250419,93672.0,93654.0,0.34053832]
[1734977546140,0.0011697,93672.0,93654.0,0.34053832]
[1734977546725,0.0011697,93672.0,93654.0,0.34453832]
[1734977547129,0.0011697,93672.0,93665.0,0.023]
[1734977547342,0.00132929,93672.0,93671.0,0.236513]
[1734977547540,0.00033039,93672.0,93671.0,0.66507032]
[1734977547754,0.00033039,93672.0,93671.0,0.91507032]
[1734977548019,0.00033039,93672.0,93671.0,1.01905664]
[1734977549234,0.00033039,93672.0,93671.0,1.11905664]
[1734977549388,0.00433039,93672.0,93671.0,1.21477488]
[1734977549729,0.00384165,93672.0,93671.0,1.21477488]
[1734977549863,0.213448,93700.0,93681.0,0.023]
[1734977550066,0.00150507,93697.0,93683.0,0.023]
[1734977550270,0.00150507,93697.0,93689.0,0.023]
[1734977550271,0.000171,93697.0,93689.0,0.023]
[1734977550545,0.000171,93697.0,93690.0,0.00079814]
[1734977550770,0.000171,93697.0,93690.0,0.49125346]
[1734977550992,0.000171,93697.0,93690.0,0.49045532]
[1734977551188,0.000171,93697.0,93690.0,0.59444164]
[1734977552025,0.000171,93697.0,93696.0,0.1]
[1734977552242,0.000171,93697.0,93696.0,0.69123967]
[1734977552460,0.000171,93697.0,93696.0,0.69044232]
[1734977552663,0.000171,93697.0,93696.0,0.79442864]
[1734977552873,0.0001712,93707.0,93706.0,0.363433]
[1734977553097,0.00033074,93707.0,93706.0,0.49041932]
[1734977554601,0.00033074,93707.0,93706.0,0.59041932]
[1734977555432,0.00033074,93707.0,93706.0,0.83709032]
[1734977555638,0.00133074,93707.0,93706.0,0.87081023]
[1734977556070,0.00033074,93707.0,93706.0,0.87081023]
[1734977556483,0.00033074,93707.0,93706.0,0.246671]
[1734977557306,0.213439,93704.0,93700.0,0.09571824]
[1734977557633,0.000171,93712.0,93700.0,0.09571824]
[1734977557836,0.000171,93712.0,93707.0,0.21343]
[1734977558058,0.000171,93712.0,93707.0,0.42686]
[1734977558245,0.000171,93712.0,93707.0,0.21343]
[1734977559062,0.000171,93712.0,93708.0,0.023]
[1734977559654,0.000171,93712.0,93709.0,0.42764968]
[1734977559776,0.000171,93712.0,93710.0,0.02379754]
[1734977559977,0.000171,93712.0,93711.0,0.213422]
[1734977560209,0.001171,93712.0,93711.0,0.236422]
[1734977560440,0.001171,93712.0,93711.0,0.29270543]
[1734977560624,0.00091807,93712.0,93711.0,0.29270543]
[1734977560828,0.00191807,93712.0,93711.0,0.29270543]
[1734977561024,0.0009946,93725.0,93711.0,0.29270543]
[1734977561226,0.0009946,93725.0,93712.0,0.023]
[1734977561499,0.213416,93714.0,93698.0,0.460121]
[1734977561758,0.213403,93719.0,93702.0,0.21344]
[1734977561956,0.213401,93721.0,93702.0,0.21344]
[1734977561957,0.213408,93717.0,93702.0,0.21344]
[1734977562162,0.213408,93717.0,93710.0,0.003]
[1734977562335,0.0009946,93725.0,93711.0,0.009]
[1734977562538,0.0009946,93725.0,93712.0,0.213419]
[1734977562761,0.002,93714.0,93713.0,0.066585]
[1734977563020,0.00232835,93725.0,93713.0,0.066585]
[1734977563975,0.213392,93724.0,93713.0,0.066585]
[1734977564179,0.426812,93718.0,93713.0,0.003]
[1734977564380,0.21341,93716.0,93713.0,0.003]
[1734977564797,0.0009946,93725.0,93714.0,0.236415]
[1734977565197,0.0009946,93725.0,93722.0,0.023]
[1734977565371,0.0009946,93725.0,93722.0,0.04671946]
[1734977565584,0.000171,93727.0,93725.0,0.21339]
[1734977565838,0.000171,93727.0,93726.0,0.023]
[1734977566576,0.0831,93763.0,93740.0,0.213356]
[1734977566911,0.213287,93771.0,93740.0,0.41634232]
[1734977566912,0.00015951,93741.0,93740.0,0.41634232]
[1734977567115,0.00015951,93741.0,93740.0,0.59662865]
[1734977567705,0.00015951,93741.0,93740.0,0.80998465]
[1734977568926,0.00115951,93741.0,93740.0,0.80998465]
[1734977569120,0.0009237,93741.0,93740.0,0.81098465]
[1734977569737,0.0009237,93741.0,93740.0,0.73801332]
[1734977570743,0.0010091,93741.0,93740.0,0.73801332]
[1734977571403,0.213313,93759.0,93744.0,0.213346]
[1734977571747,0.00133324,93758.0,93745.0,0.023]
[1734977571933,0.213313,93759.0,93745.0,0.023]
[1734977572503,0.213313,93759.0,93741.0,0.246671]
[1734977572504,0.001,93759.0,93742.0,0.15]
[1734977572699,0.001,93759.0,93731.0,0.213375]
[1734977572700,0.0818,93757.0,93731.0,0.213375]
[1734977572934,0.213341,93747.0,93731.0,0.213375]
[1734977573248,0.213321,93755.0,93731.0,0.213375]
[1734977573249,0.213344,93745.0,93731.0,0.213375]
[1734977573458,0.00133343,93744.0,93729.0,0.09571824]
[1734977573659,0.213349,93743.0,93729.0,0.09571824]
[1734977573819,0.00133347,93742.0,93729.0,0.09571824]
[1734977574221,0.213364,93737.0,93729.0,0.09571824]
[1734977574581,0.00133358,93736.0,93729.0,0.09571824]
[1734977574817,0.0009897,93750.0,93735.0,0.1]
[1734977575027,0.0009897,93750.0,93746.0,0.213341]
[1734977575236,0.213299,93765.0,93750.0,0.213331]
[1734977575403,0.00133321,93764.0,93751.0,0.023]
[1734977575614,0.004,93757.0,93752.0,0.213328]
[1734977576420,0.00133321,93764.0,93752.0,0.213328]
[1734977576626,0.00153158,93762.0,93752.0,0.213328]
[1734977577295,0.001,93757.0,93754.0,0.213324]
[1734977577934,0.001,93757.0,93752.0,0.009]
[1734977578357,0.0009944,93767.0,93752.0,0.012]
[1734977578569,0.00053673,93766.0,93752.0,0.00353158]
[1734977578754,0.00053673,93766.0,93752.0,0.01253158]
[1734977578755,0.213313,93759.0,93752.0,0.01253158]
[1734977578980,0.00053673,93758.0,93752.0,0.00353158]
[1734977579176,0.00053673,93758.0,93752.0,0.00053158]
[1734977579423,0.001,93757.0,93752.0,0.00853158]
[1734977579633,0.21385573,93756.0,93752.0,0.00253158]
[1734977579783,0.213319,93756.0,93752.0,0.00553158]
[1734977580149,0.00053673,93755.0,93752.0,0.00253158]
[1734977580530,0.001,93758.0,93752.0,0.01053158]
[1734977580734,0.21385473,93757.0,93752.0,0.01053158]
[1734977580946,0.213318,93757.0,93752.0,0.01053158]
[1734977581081,0.00053673,93756.0,93752.0,0.01053158]
[1734977581288,0.00053673,93756.0,93752.0,0.00853158]
[1734977581489,0.00053673,93756.0,93752.0,0.00953158]
[1734977581698,0.00053673,93756.0,93752.0,0.00153158]
[1734977581897,0.00053673,93756.0,93752.0,0.00053158]
[1734977581898,0.426643,93755.0,93752.0,0.00053158]
[1734977582128,0.00053673,93754.0,93752.0,0.00553158]
[1734977582287,0.00053673,93754.0,93752.0,0.00153158]
[1734977582486,8.53e-05,93757.0,93752.0,0.00153158]
[1734977582716,0.00062203,93757.0,93752.0,0.00153158]
[1734977582937,0.00062203,93757.0,93752.0,0.00553158]
[1734977583349,0.00062203,93757.0,93752.0,0.00053158]
[1734977583665,0.00062203,93757.0,93752.0,0.00453158]
[1734977583666,8.53e-05,93757.0,93752.0,0.00453158]
[1734977584696,8.53e-05,93757.0,93752.0,0.00553158]
[1734977584916,8.53e-05,93757.0,93752.0,0.00153158]
[1734977585119,8.53e-05,93757.0,93752.0,0.00653158]
[1734977585318,8.53e-05,93757.0,93752.0,0.00053158]
[1734977585519,8.53e-05,93757.0,93752.0,0.00253158]
[1734977585722,8.53e-05,93757.0,93752.0,0.00753158]
[1734977586517,0.21332,93756.0,93752.0,0.00753158]
[1734977586720,0.00053673,93755.0,93752.0,0.00753158]
[1734977587134,8.53e-05,93757.0,93752.0,0.00753158]
[1734977587135,0.213324,93754.0,93752.0,0.00753158]
[1734977587340,0.18192305,93753.0,93752.0,0.00553158]
[1734977588525,0.18192305,93753.0,93752.0,0.00053158]
[1734977588702,0.07793673,93753.0,93752.0,0.00253158]
[1734977588903,0.00053673,93753.0,93752.0,0.02353158]
[1734977589113,0.213324,93754.0,93752.0,0.02353158]
[1734977589286,0.213324,93754.0,93752.0,0.02553158]
[1734977589496,0.10452305,93753.0,93752.0,0.00053158]
[1734977589950,0.10452305,93753.0,93752.0,0.00353158]
[1734977590129,0.00053673,93753.0,93752.0,0.00053158]
[1734977590486,0.00053673,93753.0,93752.0,0.00253158]
[1734977590891,0.00053673,93753.0,93752.0,0.00353158]
[1734977591191,0.00053673,93753.0,93752.0,0.00253158]
[1734977591611,0.00053673,93753.0,93752.0,0.00053158]
[1734977591814,0.00053673,93753.0,93752.0,0.00253158]
[1734977592445,0.00053673,93753.0,93752.0,0.02553158]
[1734977592657,0.00053673,93755.0,93753.0,0.023]
[1734977593236,8.53e-05,93757.0,93753.0,0.023]
[1734977594830,8.53e-05,93757.0,93752.0,0.00070218]
[1734977595010,8.53e-05,93757.0,93753.0,0.024]
[1734977595213,8.53e-05,93757.0,93753.0,0.023]
[1734977595423,8.53e-05,93757.0,93752.0,0.00070218]
[1734977595760,8.53e-05,93757.0,93754.0,0.023]
[1734977596331,8.53e-05,93757.0,93756.0,0.023]
[1734977596776,8.53e-05,93757.0,93755.0,0.023]
[1734977597976,8.53e-05,93757.0,93752.0,0.00070218]
[1734977598179,8.53e-05,93757.0,93755.0,0.025]
[1734977598496,8.53e-05,93757.0,93755.0,0.023]
[1734977598887,8.53e-05,93757.0,93755.0,0.033]
[1734977599617,8.53e-05,93757.0,93755.0,0.24632]
[1734977599854,8.53e-05,93757.0,93755.0,0.033]
[1734977602873,0.213319,93756.0,93755.0,0.033]
[1734977603046,8.53e-05,93757.0,93755.0,0.033]
[1734977603250,0.213319,93756.0,93755.0,0.033]
[1734977603633,0.213319,93756.0,93755.0,0.03]
[1734977603837,8.53e-05,93757.0,93755.0,0.03]
[1734977604057,0.00062203,93757.0,93755.0,0.026]
[1734977604261,0.24237073,93756.0,93755.0,0.003]
[1734977604438,0.24237073,93756.0,93755.0,0.011]
[1734977604633,0.02905173,93756.0,93752.0,0.00070218]
[1734977604844,0.21385873,93755.0,93752.0,0.00070218]
[1734977605081,0.213326,93753.0,93752.0,0.00070218]
[1734977606192,8.53e-05,93757.0,93752.0,0.00070218]
[1734977606591,8.53e-05,93757.0,93753.0,0.023]
[1734977606773,8.53e-05,93757.0,93754.0,0.000171]
[1734977606978,8.53e-05,93757.0,93756.0,0.023]
[1734977608265,8.53e-05,93757.0,93756.0,0.001]
[1734977608688,0.14734118,93757.0,93756.0,0.001]
[1734977608901,0.08102203,93757.0,93756.0,0.001]
[1734977609500,0.213319,93756.0,93754.0,0.000171]
[1734977609705,0.00053673,93755.0,93754.0,0.000171]
[1734977611092,8.53e-05,93757.0,93756.0,0.001]
[1734977611299,0.00062203,93757.0,93756.0,0.001]
[1734977611942,0.00062203,93757.0,93746.0,0.18821418]
[1734977612145,0.00115361,93757.0,93754.0,0.002]
[1734977612285,0.00061688,93757.0,93749.0,0.213333]
[1734977612485,0.00061688,93757.0,93746.0,0.18821418]
[1734977612704,0.00061688,93757.0,93756.0,0.001]
[1734977613801,0.00061688,93757.0,93749.0,0.001]
[1734977614213,0.00061688,93757.0,93746.0,0.19121418]
[1734977614419,0.00061688,93757.0,93756.0,0.001]
[1734977614618,0.00115361,93757.0,93756.0,0.002]
[1734977615083,0.00115361,93757.0,93756.0,0.001]
[1734977615748,0.00061688,93757.0,93755.0,0.21332]
[1734977615975,0.00061688,93757.0,93756.0,0.003]
[1734977616841,0.00061688,93757.0,93750.0,0.213331]
[1734977617329,0.00061688,93757.0,93756.0,0.001]
[1734977618619,0.00061688,93757.0,93756.0,0.004]
[1734977618800,0.00061688,93757.0,93756.0,0.003]
[1734977619883,0.00061688,93757.0,93756.0,0.005]
[1734977620350,0.00061688,93757.0,93756.0,0.002]
[1734977620550,0.00061688,93757.0,93756.0,0.007]
[1734977622065,0.00061688,93757.0,93756.0,0.220319]
[1734977625474,0.00061688,93757.0,93756.0,0.007]
[1734977627063,0.00061688,93757.0,93756.0,0.220319]
[1734977628230,0.00061688,93757.0,93756.0,0.41212032]
[1734977628428,0.00061688,93757.0,93756.0,0.93389132]
[1734977629081,0.00061688,93757.0,93756.0,0.93189132]
[1734977629209,0.00061688,93757.0,93756.0,0.93389132]
[1734977629965,0.00061688,93757.0,93756.0,1.56949153]
[1734977630206,0.00061688,93757.0,93756.0,1.57849153]
[1734977630417,8.53e-05,93762.0,93761.0,0.419671]
[1734977630623,8.53e-05,93762.0,93761.0,0.84095164]
[1734977631059,8.53e-05,93762.0,93761.0,0.73696532]
[1734977631925,8.53e-05,93762.0,93761.0,0.73796532]
[1734977632129,8.53e-05,93762.0,93761.0,0.83796532]
[1734977632308,8.53e-05,93762.0,93761.0,1.19194979]
[1734977632524,3e-07,93762.0,93761.0,1.41884979]
[1734977632689,3e-07,93762.0,93761.0,1.52283611]
[1734977633104,3e-07,93762.0,93761.0,1.52183611]
[1734977633314,0.0001708,93785.0,93778.0,0.440669]
[1734977633472,0.00022941,93779.0,93778.0,0.56765532]
[1734977633673,0.00022941,93779.0,93778.0,0.67164164]
[1734977633872,0.00022941,93779.0,93778.0,0.41765532]
[1734977634083,0.00022941,93779.0,93778.0,0.34025532]
[1734977634532,0.00022941,93779.0,93778.0,0.34525532]
[1734977634738,0.00022941,93779.0,93778.0,0.34025532]
[1734977635150,0.00122941,93779.0,93778.0,0.34125532]
[1734977635452,0.00322941,93779.0,93778.0,0.44524164]
[1734977635862,0.00122941,93779.0,93778.0,0.72164164]
[1734977636079,0.00322941,93779.0,93778.0,1.07164164]
[1734977636286,0.0001708,93785.0,93784.0,0.832926]
[1734977636484,0.0001708,93785.0,93784.0,1.00980355]
[1734977637134,0.00010073,93825.0,93793.0,0.246671]
[1734977637346,0.00015935,93813.0,93801.0,0.023]
[1734977637543,0.00015935,93813.0,93810.0,0.213196]
[1734977637750,0.00015935,93813.0,93812.0,0.213192]
[1734977639683,0.00015935,93813.0,93812.0,0.73684932]
[1734977640048,0.00015935,93813.0,93812.0,0.74284932]
[1734977640937,0.00015935,93813.0,93812.0,0.56384932]
[1734977641148,0.00015935,93813.0,93812.0,0.56684932]
[1734977641319,0.00015935,93813.0,93812.0,0.56784932]
[1734977641547,0.00015935,93813.0,93812.0,0.247671]
[1734977642393,0.00024485,93813.0,93812.0,0.247671]
[1734977642599,0.00024485,93813.0,93812.0,0.251671]
[1734977642803,0.00024485,93813.0,93812.0,0.004]
[1734977643032,0.21343485,93813.0,93812.0,0.004]
[1734977643247,0.00024485,93813.0,93812.0,0.005]
[1734977643425,0.00024485,93813.0,93812.0,0.004]
[1734977643600,0.00024485,93813.0,93812.0,0.012]
[1734977643802,0.00024485,93813.0,93812.0,0.008]
[1734977644202,0.00024485,93813.0,93812.0,0.003]
[1734977644413,0.00024485,93813.0,93812.0,0.004]
[1734977644619,0.00024485,93813.0,93812.0,0.001]
[1734977645036,0.21240585,93826.0,93812.0,0.001]
[1734977645239,0.42556685,93826.0,93812.0,0.001]
[1734977645447,0.1288,93828.0,93812.0,0.001]
[1734977645631,0.213175,93820.0,93812.0,0.001]
[1734977645832,0.1288,93828.0,93812.0,0.001]
[1734977645833,0.213185,93816.0,93812.0,0.003]
[1734977646028,0.10398632,93827.0,93812.0,0.001]
[1734977646905,0.213178,93818.0,93798.0,0.213222]
[1734977647206,0.213178,93818.0,93812.0,0.002]
[1734977647411,0.1288,93828.0,93812.0,0.002]
[1734977647547,0.0009831,93818.0,93812.0,0.002]
[1734977647750,0.23278632,93828.0,93812.0,0.002]
[1734977647963,0.213183,93816.0,93812.0,0.002]
[1734977648376,0.213187,93814.0,93812.0,0.002]
[1734977648579,0.09571055,93813.0,93812.0,0.002]
[1734977648786,0.09571055,93813.0,93798.0,0.00015935]
[1734977648787,0.213221,93799.0,93798.0,0.00015935]
[1734977648980,0.21177851,93799.0,93798.0,0.00015935]
[1734977649221,0.21177851,93799.0,93798.0,0.00115935]
[1734977649855,0.39506483,93799.0,93798.0,0.00115935]
[1734977650066,0.39506483,93799.0,93798.0,0.00015935]
[1734977650242,0.39506483,93799.0,93798.0,0.00915935]
[1734977650883,0.29107851,93799.0,93798.0,0.00915935]
[1734977651264,0.0793,93799.0,93798.0,0.00915935]
[1734977652039,0.426432,93802.0,93798.0,0.00915935]
[1734977652468,0.213216,93802.0,93798.0,0.00915935]
[1734977652830,0.0775,93810.0,93798.0,0.00015935]
[1734977653032,0.213209,93805.0,93798.0,0.00015935]
[1734977653462,0.213209,93805.0,93798.0,0.00033015]
[1734977653741,0.10398632,93804.0,93798.0,0.00033015]
[1734977653909,0.213219,93801.0,93798.0,0.00033015]
[1734977654115,0.00413945,93800.0,93798.0,0.00033015]
[1734977654982,0.213221,93799.0,93798.0,0.00033015]
[1734977656215,0.43980732,93799.0,93798.0,0.00033015]
[1734977656857,0.48100281,93799.0,93798.0,0.00033015]
[1734977657500,0.73100281,93799.0,93798.0,0.00033015]
[1734977657831,0.73100281,93799.0,93798.0,1.5e-07]
[1734977658480,0.15,93780.0,93755.0,0.000171]
[1734977658821,0.213315,93758.0,93755.0,0.00033041]
[1734977659327,0.42663,93758.0,93755.0,0.00033041]
[1734977659530,0.213315,93758.0,93755.0,0.00033041]
[1734977660348,0.42663,93758.0,93755.0,0.00033041]
[1734977660570,0.42663,93758.0,93755.0,0.00133041]
[1734977660996,0.42663,93758.0,93755.0,0.00233041]
[1734977661202,0.42663,93758.0,93755.0,0.00033041]
[1734977661418,0.42663,93758.0,93755.0,0.00333041]
[1734977661622,0.213319,93756.0,93755.0,0.00333041]
[1734977661825,0.213319,93756.0,93755.0,0.00133041]
[1734977662121,0.213319,93756.0,93755.0,0.00333041]
[1734977662578,0.213319,93756.0,93755.0,0.00233041]
[1734977662971,0.213319,93756.0,93755.0,0.00333041]
[1734977663173,0.213319,93756.0,93755.0,0.00133041]
[1734977663378,0.213319,93756.0,93755.0,0.00033041]
[1734977663577,0.213319,93756.0,93755.0,0.00433041]
[1734977663778,0.213319,93756.0,93755.0,0.00133041]
[1734977664035,0.213319,93756.0,93755.0,0.00433041]
[1734977664485,0.213319,93756.0,93755.0,0.00133041]
[1734977664930,0.31730532,93756.0,93755.0,0.00433041]
[1734977665683,0.31730532,93756.0,93755.0,0.00333041]
[1734977665888,0.31730532,93756.0,93755.0,0.00433041]
[1734977666343,0.31730532,93756.0,93755.0,0.00333041]
[1734977666550,0.31730532,93756.0,93755.0,0.00633041]
[1734977666776,0.31730532,93756.0,93755.0,0.00033041]
[1734977667206,0.213315,93758.0,93755.0,0.00033041]
[1734977667615,0.211815,93758.0,93755.0,0.00033041]
[1734977667822,0.1,93778.0,93755.0,0.00033041]
[1734977667823,0.213308,93761.0,93755.0,0.00033041]
[1734977668086,0.213312,93760.0,93755.0,0.00033041]
[1734977668492,0.426624,93760.0,93755.0,0.00033041]
[1734977669103,0.213315,93758.0,93755.0,0.00033041]
[1734977669274,0.00380904,93755.0,93754.0,0.001]
[1734977671325,0.10779536,93755.0,93754.0,0.001]
[1734977671573,0.18349536,93755.0,93754.0,0.001]
[1734977672638,0.23319536,93755.0,93754.0,0.001]
[1734977675203,0.00380904,93755.0,93754.0,0.001]
[1734977676713,0.00380904,93755.0,93754.0,0.001171]
[1734977676924,0.00389454,93755.0,93754.0,0.001171]
[1734977677112,0.00389454,93755.0,93754.0,0.003171]
[1734977677318,0.00389454,93755.0,93754.0,0.008171]
[1734977677660,0.00389454,93755.0,93754.0,0.003171]
[1734977677836,0.00389454,93755.0,93754.0,0.012171]
[1734977678050,0.00389454,93755.0,93754.0,0.21755732]
[1734977678456,0.00389454,93755.0,93754.0,0.21555732]
[1734977678661,0.00389454,93755.0,93754.0,0.21955732]
[1734977679081,0.00389454,93755.0,93754.0,0.20655732]
[1734977679302,0.00389454,93755.0,93754.0,0.21255732]
[1734977679534,0.00389454,93755.0,93754.0,0.21655732]
[1734977679735,0.00389454,93755.0,93754.0,0.21055732]
[1734977679954,0.00389454,93755.0,93754.0,0.21955732]
[1734977680418,0.00389454,93755.0,93754.0,0.21555732]
[1734977680777,0.00389454,93755.0,93754.0,0.22455732]
[1734977681703,0.00389454,93755.0,93754.0,0.22955732]
[1734977682184,0.00389454,93755.0,93754.0,0.22455732]
[1734977682372,0.00389454,93755.0,93754.0,0.001171]
[1734977682547,0.00389454,93755.0,93754.0,0.002171]
[1734977683322,0.13757131,93755.0,93754.0,0.002171]
[1734977683505,0.13757131,93755.0,93754.0,0.001171]
[1734977683723,0.48757131,93755.0,93754.0,0.008171]
[1734977683928,0.56317131,93755.0,93754.0,0.001171]
[1734977684349,0.2,93753.0,93752.0,0.000171]
[1734977684563,0.70788826,93753.0,93752.0,0.000171]
[1734977685005,0.56731232,93753.0,93752.0,0.000171]
[1734977685604,0.66731232,93753.0,93752.0,0.000171]
[1734977686017,0.1,93743.0,93702.0,0.21344]
[1734977686230,0.213394,93723.0,93722.0,0.00070218]
[1734977686446,0.213381,93729.0,93722.0,0.00070218]
[1734977686866,0.213376,93732.0,93722.0,0.00070218]
[1734977687111,0.31833202,93742.0,93722.0,0.00070218]
[1734977687112,0.213353,93741.0,93723.0,0.292594]
[1734977687286,0.10498102,93742.0,93723.0,0.292594]
[1734977687287,0.0009947,93742.0,93728.0,0.213381]
[1734977687496,0.213353,93741.0,93728.0,0.213381]
[1734977687923,0.0009947,93742.0,93732.0,0.213373]
[1734977688651,0.0009947,93742.0,93737.0,0.213361]
[1734977688865,0.213333,93750.0,93737.0,0.213361]
[1734977689433,0.213333,93750.0,93737.0,0.426723]
[1734977689729,0.213333,93750.0,93737.0,0.213361]
[1734977689980,0.21596304,93754.0,93737.0,0.001]
[1734977689981,0.213344,93745.0,93737.0,0.001]
[1734977690449,0.213344,93745.0,93737.0,0.002]
[1734977690692,0.04303804,93749.0,93737.0,0.002]
[1734977690693,0.213358,93740.0,93737.0,0.001]
[1734977690914,0.213346,93744.0,93737.0,0.001]
[1734977691128,0.213356,93740.0,93737.0,0.001]
[1734977691791,0.213346,93744.0,93737.0,0.001]
[1734977692179,0.213356,93740.0,93737.0,0.002]
[1734977692380,0.213356,93740.0,93737.0,0.001]
[1734977692579,0.213356,93740.0,93737.0,0.003]
[1734977693162,0.213356,93740.0,93737.0,0.001]
[1734977693340,0.213356,93740.0,93737.0,0.002]
[1734977693541,0.213338,93748.0,93728.0,0.048771]
[1734977693767,0.213338,93748.0,93737.0,0.218362]
[1734977694171,8.55e-05,93752.0,93745.0,0.213344]
[1734977694373,8.55e-05,93752.0,93737.0,0.005]
[1734977694572,8.55e-05,93752.0,93747.0,0.213339]
[1734977694809,8.55e-05,93752.0,93739.0,0.023]
[1734977695041,8.55e-05,93752.0,93749.0,0.213335]
[1734977695250,8.55e-05,93752.0,93730.0,0.246671]
[1734977695463,8.55e-05,93752.0,93737.0,0.002]
[1734977695464,0.213348,93744.0,93737.0,0.002]
[1734977695669,0.12578407,93752.0,93731.0,0.09558761]
[1734977695872,0.213349,93744.0,93732.0,0.213374]
[1734977696523,0.213341,93747.0,93732.0,0.213374]